[Event "*** Titled Tuesday Blitz"]
[Site "Chess.com"]
[Date "2019.05.07"]
[Round "10"]
[White "Alopekos"]
[Black "Keithonsky"]
[Result "1-0"]
[WhiteElo "2597"]
[BlackElo "2374"]
[TimeControl "180+2"]
[EndTime "15:27:30 PDT"]
[Termination "Alopekos won by resignation"]

1. e4 {[%clk 0:03:01.9]} 1... c5 {[%clk 0:02:59.4]} 2. Nf3 {[%clk 0:03:01.7]}
2... d6 {[%clk 0:03:00.8]} 3. d4 {[%clk 0:03:02.3]} 3... cxd4 {[%clk 0:03:02.7]}
4. Nxd4 {[%clk 0:03:04.2]} 4... Nf6 {[%clk 0:03:04]} 5. Nc3 {[%clk 0:03:05.7]}
5... a6 {[%clk 0:03:04.5]} 6. Be3 {[%clk 0:03:06.8]} 6... e5 {[%clk 0:03:05.1]}
7. Nb3 {[%clk 0:03:07.8]} 7... Be6 {[%clk 0:03:06.6]} 8. f4 {[%clk 0:03:08.9]}
8... exf4 {[%clk 0:03:06.6]} 9. Bxf4 {[%clk 0:03:10.8]} 9... Nc6 {[%clk
0:03:08.1]} 10. Qd2 {[%clk 0:03:11.6]} 10... Qc7 {[%clk 0:03:07.2]} 11. O-O-O
{[%clk 0:03:10.9]} 11... Ne5 {[%clk 0:03:08.7]} 12. Nd4 {[%clk 0:03:07.3]} 12...
Rc8 {[%clk 0:03:01.6]} 13. Nxe6 {[%clk 0:02:09.1]} 13... fxe6 {[%clk 0:03:01.9]}
14. g3 {[%clk 0:02:10.6]} 14... Qb6 {[%clk 0:02:47]} 15. Qd4 {[%clk 0:00:51.5]}
15... Qxd4 {[%clk 0:02:17.1]} 16. Rxd4 {[%clk 0:00:53.4]} 16... Be7 {[%clk
0:01:56.4]} 17. Bh3 {[%clk 0:00:52.8]} 17... Kf7 {[%clk 0:01:56.6]} 18. Rf1
{[%clk 0:00:54.3]} 18... Rhe8 {[%clk 0:01:52.5]} 19. Bxe5 {[%clk 0:00:44.9]}
19... dxe5 {[%clk 0:01:53.4]} 20. Rd7 {[%clk 0:00:46.5]} 20... b5 {[%clk
0:01:51.4]} 21. Nd5 {[%clk 0:00:31.9]} 21... exd5 {[%clk 0:01:45.6]} 22. exd5
{[%clk 0:00:32.6]} 22... Rcd8 {[%clk 0:01:40.1]} 23. Be6+ {[%clk 0:00:33]} 23...
Kg6 {[%clk 0:01:37.7]} 24. Ra7 {[%clk 0:00:28.3]} 24... Rd6 {[%clk 0:01:28.9]}
25. g4 {[%clk 0:00:20]} 25... h6 {[%clk 0:01:24.4]} 26. h4 {[%clk 0:00:20]}
26... e4 {[%clk 0:01:03.3]} 27. h5+ {[%clk 0:00:17.5]} 27... Kg5 {[%clk
0:00:56.7]} 28. Bf7 {[%clk 0:00:15]} 28... Bd8 {[%clk 0:00:49.5]} 29. Bxe8
{[%clk 0:00:10.7]} 29... Nxe8 {[%clk 0:00:49.6]} 30. Rf8 {[%clk 0:00:08.7]}
30... Nc7 {[%clk 0:00:19.4]} 31. Rxd8 {[%clk 0:00:09.4]} 31... Rxd8 {[%clk
0:00:20.9]} 32. Rxc7 {[%clk 0:00:11]} 32... Kxg4 {[%clk 0:00:21.8]} 33. Rxg7+
{[%clk 0:00:09.5]} 33... Kf3 {[%clk 0:00:23.4]} 34. Rf7+ {[%clk 0:00:08.1]}
34... Ke2 {[%clk 0:00:25]} 35. Rf5 {[%clk 0:00:03.8]} 35... e3 {[%clk
0:00:26.2]} 36. c3 {[%clk 0:00:03.4]} 36... a5 {[%clk 0:00:26.9]} 37. Kc2 {[%clk
0:00:04.6]} 37... a4 {[%clk 0:00:28.2]} 38. Re5 {[%clk 0:00:04.4]} 38... Kf2
{[%clk 0:00:29.2]} 39. Kd3 {[%clk 0:00:05]} 39... Rd6 {[%clk 0:00:27.6]} 40.
Rf5+ {[%clk 0:00:06.2]} 40... Kg3 {[%clk 0:00:27]} 41. Kxe3 {[%clk 0:00:08.1]}
41... Kg4 {[%clk 0:00:28.9]} 42. Ke4 {[%clk 0:00:09.1]} 42... Rd8 {[%clk
0:00:30]} 43. Re5 {[%clk 0:00:06.4]} 43... Rf8 {[%clk 0:00:31.5]} 44. Kd4 {[%clk
0:00:06.4]} 44... Rf2 {[%clk 0:00:32.5]} 45. b3 {[%clk 0:00:07]} 45... Rxa2
{[%clk 0:00:33.3]} 46. bxa4 {[%clk 0:00:07.6]} 46... bxa4 {[%clk 0:00:34.8]} 47.
d6 {[%clk 0:00:08.9]} 47... Rd2+ {[%clk 0:00:35.7]} 48. Kc5 {[%clk 0:00:10.3]}
48... a3 {[%clk 0:00:37.6]} 49. Re4+ {[%clk 0:00:08.8]} 49... Kf5 {[%clk
0:00:37.8]} 50. Ra4 {[%clk 0:00:09.3]} 50... a2 {[%clk 0:00:37.6]} 51. Kc6
{[%clk 0:00:09.9]} 51... Ke6 {[%clk 0:00:35.7]} 52. Re4+ {[%clk 0:00:11]} 52...
Kf5 {[%clk 0:00:37]} 53. Ra4 {[%clk 0:00:12]} 53... Ke6 {[%clk 0:00:38.2]} 54.
Re4+ {[%clk 0:00:10]} 54... Kf5 {[%clk 0:00:39.5]} 55. Re1 {[%clk 0:00:09.4]}
55... Rc2 {[%clk 0:00:33.4]} 56. d7 {[%clk 0:00:07.8]} 56... Rxc3+ {[%clk
0:00:34.7]} 57. Kb7 {[%clk 0:00:08.4]} 57... Rb3+ {[%clk 0:00:36]} 58. Kc8
{[%clk 0:00:08.2]} 58... Rb1 {[%clk 0:00:34.1]} 59. d8=Q {[%clk 0:00:09.5]}
59... Rxe1 {[%clk 0:00:31.1]} 60. Qd5+ {[%clk 0:00:05.1]} 60... Kg4 {[%clk
0:00:27.2]} 61. Qxa2 {[%clk 0:00:03.7]} 61... Re5 {[%clk 0:00:28.6]} 62. Qg2+
{[%clk 0:00:03.6]} 62... Kf4 {[%clk 0:00:24.5]} 63. Qg6 {[%clk 0:00:02.8]} 63...
Rc5+ {[%clk 0:00:24]} 64. Kd7 {[%clk 0:00:03.6]} 64... Rd5+ {[%clk 0:00:23.6]}
65. Ke6 {[%clk 0:00:04.6]} 65... Ra5 {[%clk 0:00:25]} 66. Qxh6+ {[%clk 0:00:05]}
66... Kg4 {[%clk 0:00:26.4]} 67. Qg6+ {[%clk 0:00:06.3]} 67... Kh4 {[%clk
0:00:28]} 68. h6 {[%clk 0:00:04]} 68... Ra6+ {[%clk 0:00:28.5]} 69. Kf5 {[%clk
0:00:04.8]} 69... Ra5+ {[%clk 0:00:29]} 70. Kf6 {[%clk 0:00:05.2]} 70... Ra6+
{[%clk 0:00:29.9]} 71. Kg7 {[%clk 0:00:06.6]} 71... Ra7+ {[%clk 0:00:31.6]} 72.
Qf7 {[%clk 0:00:07.3]} 72... Ra3 {[%clk 0:00:27.8]} 73. Qe7+ {[%clk 0:00:06.5]}
1-0

[Event "*** Titled Tuesday Blitz"]
[Site "Chess.com"]
[Date "2019.05.07"]
[Round "10"]
[White "stepanosinovsky"]
[Black "spicycaterpillar"]
[Result "0-1"]
[WhiteElo "2416"]
[BlackElo "2826"]
[TimeControl "180+2"]
[EndTime "15:27:36 PDT"]
[Termination "spicycaterpillar won by resignation"]

1. e4 {[%clk 0:03:01.9]} 1... e5 {[%clk 0:02:58.2]} 2. Nf3 {[%clk 0:03:02.8]}
2... Nc6 {[%clk 0:02:58.6]} 3. Bb5 {[%clk 0:03:03.6]} 3... Nf6 {[%clk
0:02:57.4]} 4. d3 {[%clk 0:03:04.3]} 4... Bc5 {[%clk 0:02:57]} 5. O-O {[%clk
0:03:04.8]} 5... O-O {[%clk 0:02:56]} 6. c3 {[%clk 0:03:04.3]} 6... d6 {[%clk
0:02:57]} 7. h3 {[%clk 0:03:03.5]} 7... Ne7 {[%clk 0:02:57.3]} 8. d4 {[%clk
0:03:01.6]} 8... Bb6 {[%clk 0:02:57.3]} 9. Nbd2 {[%clk 0:03:01.7]} 9... Ng6
{[%clk 0:02:54.4]} 10. Bd3 {[%clk 0:03:00.3]} 10... c6 {[%clk 0:02:50.8]} 11.
Nc4 {[%clk 0:02:58.9]} 11... Bc7 {[%clk 0:02:49.4]} 12. Kh2 {[%clk 0:02:53.2]}
12... d5 {[%clk 0:02:43.8]} 13. Ncd2 {[%clk 0:02:18.3]} 13... dxe4 {[%clk
0:02:09.8]} 14. Nxe4 {[%clk 0:02:16.4]} 14... exd4+ {[%clk 0:02:03.7]} 15. Kg1
{[%clk 0:02:15.4]} 15... Nxe4 {[%clk 0:02:00.6]} 16. Bxe4 {[%clk 0:02:15.9]}
16... dxc3 {[%clk 0:02:01.3]} 17. bxc3 {[%clk 0:02:14.1]} 17... Qxd1 {[%clk
0:01:56.1]} 18. Rxd1 {[%clk 0:02:16]} 18... Re8 {[%clk 0:01:57.5]} 19. Bd3
{[%clk 0:02:05]} 19... Nf4 {[%clk 0:01:37.6]} 20. Bxf4 {[%clk 0:01:33.5]} 20...
Bxf4 {[%clk 0:01:35]} 21. Rab1 {[%clk 0:01:35.4]} 21... Bc7 {[%clk 0:01:24.8]}
22. Nd4 {[%clk 0:01:32]} 22... g6 {[%clk 0:01:08.8]} 23. Bf1 {[%clk 0:01:18]}
23... Kf8 {[%clk 0:01:01.5]} 24. g3 {[%clk 0:01:18.4]} 24... Bb6 {[%clk
0:01:00.2]} 25. a4 {[%clk 0:01:15.1]} 25... Ba5 {[%clk 0:00:42.6]} 26. c4 {[%clk
0:01:12.8]} 26... a6 {[%clk 0:00:32.5]} 27. Bg2 {[%clk 0:01:11.4]} 27... Bc7
{[%clk 0:00:24.6]} 28. Nb3 {[%clk 0:00:28.8]} 28... Ra7 {[%clk 0:00:24]} 29. Nd4
{[%clk 0:00:21.4]} 29... Rd8 {[%clk 0:00:20.8]} 30. Nb3 {[%clk 0:00:18.5]} 30...
Rxd1+ {[%clk 0:00:21]} 31. Rxd1 {[%clk 0:00:20.4]} 31... Be6 {[%clk 0:00:21.3]}
32. Nc5 {[%clk 0:00:20.5]} 32... Bxc4 {[%clk 0:00:15.4]} 33. Rd7 {[%clk
0:00:21.5]} 33... b6 {[%clk 0:00:13.4]} 34. Ne4 {[%clk 0:00:20.4]} 34... Be6
{[%clk 0:00:12.8]} 35. Rd1 {[%clk 0:00:19.8]} 35... h6 {[%clk 0:00:07.4]} 36.
Nf6 {[%clk 0:00:20.3]} 36... c5 {[%clk 0:00:08.3]} 37. Bc6 {[%clk 0:00:20.1]}
37... Ke7 {[%clk 0:00:08.5]} 38. Nd5+ {[%clk 0:00:20.9]} 38... Bxd5 {[%clk
0:00:09.7]} 39. Rxd5 {[%clk 0:00:21.1]} 39... Bd6 {[%clk 0:00:10.8]} 40. Kf1
{[%clk 0:00:20]} 40... Rc7 {[%clk 0:00:11.7]} 41. Ba8 {[%clk 0:00:21.1]} 41...
Ra7 {[%clk 0:00:11.6]} 42. Bc6 {[%clk 0:00:21.7]} 42... Rc7 {[%clk 0:00:12.4]}
43. Ba8 {[%clk 0:00:23]} 43... c4 {[%clk 0:00:11]} 44. Rd2 {[%clk 0:00:23.2]}
44... b5 {[%clk 0:00:11.7]} 45. axb5 {[%clk 0:00:23.8]} 45... axb5 {[%clk
0:00:13.6]} 46. Bd5 {[%clk 0:00:24.4]} 46... b4 {[%clk 0:00:11.4]} 47. Rc2
{[%clk 0:00:25.6]} 47... c3 {[%clk 0:00:09.7]} 48. Bb3 {[%clk 0:00:27.4]} 48...
Bc5 {[%clk 0:00:09.9]} 49. Re2+ {[%clk 0:00:27.5]} 49... Kf6 {[%clk 0:00:10.6]}
50. Ke1 {[%clk 0:00:28.3]} 50... Ra7 {[%clk 0:00:10.6]} 51. Rc2 {[%clk
0:00:27.1]} 51... Ra1+ {[%clk 0:00:09.2]} 52. Ke2 {[%clk 0:00:28.4]} 52... g5
{[%clk 0:00:09.3]} 53. h4 {[%clk 0:00:28.9]} 53... gxh4 {[%clk 0:00:09.9]} 54.
gxh4 {[%clk 0:00:30.8]} 54... Rh1 {[%clk 0:00:11]} 55. Ra2 {[%clk 0:00:29.2]}
55... Rxh4 {[%clk 0:00:12.1]} 56. Ra6+ {[%clk 0:00:28.7]} 56... Kg7 {[%clk
0:00:11.3]} 57. Rc6 {[%clk 0:00:29.5]} 57... Rh5 {[%clk 0:00:06.3]} 58. f4
{[%clk 0:00:28.3]} 58... Bf8 {[%clk 0:00:05.3]} 59. Kf3 {[%clk 0:00:28.7]} 59...
Rc5 {[%clk 0:00:05.7]} 60. Rxc5 {[%clk 0:00:19.1]} 60... Bxc5 {[%clk 0:00:07.6]}
61. Kg4 {[%clk 0:00:18.5]} 61... Bd6 {[%clk 0:00:07.9]} 62. Bc2 {[%clk
0:00:18.2]} 62... Kf6 {[%clk 0:00:08.6]} 63. Bb3 {[%clk 0:00:19.2]} 63... Bc7
{[%clk 0:00:09.6]} 64. Kf3 {[%clk 0:00:20]} 64... Bb6 {[%clk 0:00:10.7]} 65. Kg4
{[%clk 0:00:20.7]} 65... Be3 {[%clk 0:00:11.6]} 66. Kf3 {[%clk 0:00:21.4]} 66...
Bd2 {[%clk 0:00:12.9]} 67. Kg4 {[%clk 0:00:22.6]} 67... Ke7 {[%clk 0:00:14]} 68.
Kf5 {[%clk 0:00:22.9]} 68... f6 {[%clk 0:00:13.3]} 69. Kg4 {[%clk 0:00:22.9]}
69... Kd6 {[%clk 0:00:14.3]} 70. Kf3 {[%clk 0:00:21.1]} 70... Kc5 {[%clk
0:00:13.5]} 71. Ke4 {[%clk 0:00:21.5]} 71... h5 {[%clk 0:00:13.7]} 72. Kd3
{[%clk 0:00:21.4]} 72... h4 {[%clk 0:00:14.1]} 73. Be6 {[%clk 0:00:22.7]} 73...
Bxf4 {[%clk 0:00:14.8]} 74. Kc2 {[%clk 0:00:23]} 74... Kd4 {[%clk 0:00:15.4]}
0-1

[Event "*** Titled Tuesday Blitz"]
[Site "Chess.com"]
[Date "2019.05.07"]
[Round "10"]
[White "RegZryt"]
[Black "Tash_Boy"]
[Result "1/2-1/2"]
[WhiteElo "2546"]
[BlackElo "2644"]
[TimeControl "180+2"]
[EndTime "15:28:39 PDT"]
[Termination "Game drawn by repetition"]

1. d4 {[%clk 0:03:01.9]} 1... Nf6 {[%clk 0:02:59.3]} 2. c4 {[%clk 0:03:02.9]}
2... g6 {[%clk 0:03:00.1]} 3. Nc3 {[%clk 0:03:03.7]} 3... Bg7 {[%clk 0:03:01.2]}
4. e4 {[%clk 0:03:04.8]} 4... d6 {[%clk 0:03:02.7]} 5. Be2 {[%clk 0:03:06.3]}
5... O-O {[%clk 0:03:02.9]} 6. Be3 {[%clk 0:03:07.9]} 6... c6 {[%clk 0:02:58]}
7. h4 {[%clk 0:02:41.8]} 7... h5 {[%clk 0:02:52]} 8. Qd2 {[%clk 0:02:40]} 8...
a6 {[%clk 0:02:51.8]} 9. Bh6 {[%clk 0:02:40.8]} 9... b5 {[%clk 0:02:51.9]} 10.
Bxg7 {[%clk 0:02:36.8]} 10... Kxg7 {[%clk 0:02:53.8]} 11. cxb5 {[%clk
0:02:29.9]} 11... axb5 {[%clk 0:02:48.5]} 12. f3 {[%clk 0:02:31.2]} 12... b4
{[%clk 0:02:44.2]} 13. Nd1 {[%clk 0:02:31.9]} 13... Ba6 {[%clk 0:02:43.1]} 14.
Nh3 {[%clk 0:02:28.2]} 14... Qb6 {[%clk 0:02:41.1]} 15. Bxa6 {[%clk 0:02:23.4]}
15... Nxa6 {[%clk 0:02:36.8]} 16. Ne3 {[%clk 0:02:21.4]} 16... Nc7 {[%clk
0:02:27.5]} 17. O-O {[%clk 0:02:17.3]} 17... Ne6 {[%clk 0:02:26.5]} 18. Rfd1
{[%clk 0:02:14.3]} 18... Ra7 {[%clk 0:02:14.4]} 19. Ng5 {[%clk 0:01:31.4]} 19...
Nxg5 {[%clk 0:02:00.9]} 20. hxg5 {[%clk 0:01:33.3]} 20... Nd7 {[%clk 0:02:02.2]}
21. Nc2 {[%clk 0:01:29.6]} 21... Rb8 {[%clk 0:01:49.9]} 22. b3 {[%clk
0:01:27.7]} 22... d5 {[%clk 0:01:35.9]} 23. e5 {[%clk 0:01:24.9]} 23... Nf8
{[%clk 0:01:35.9]} 24. f4 {[%clk 0:01:03.7]} 24... Ne6 {[%clk 0:01:32.9]} 25.
Rf1 {[%clk 0:01:05.3]} 25... Kh7 {[%clk 0:01:25.1]} 26. f5 {[%clk 0:01:04.3]}
26... Ng7 {[%clk 0:01:25.6]} 27. Ne3 {[%clk 0:00:51]} 27... e6 {[%clk
0:01:00.7]} 28. fxg6+ {[%clk 0:00:51]} 28... fxg6 {[%clk 0:01:01.8]} 29. Rf6
{[%clk 0:00:51.6]} 29... Rba8 {[%clk 0:00:38.3]} 30. Raf1 {[%clk 0:00:24.2]}
30... Rxa2 {[%clk 0:00:33.7]} 31. Qd3 {[%clk 0:00:25.1]} 31... Nf5 {[%clk
0:00:33.3]} 32. Nxf5 {[%clk 0:00:26.1]} 32... exf5 {[%clk 0:00:31.9]} 33. R1xf5
{[%clk 0:00:25.1]} 33... Qa6 {[%clk 0:00:24.8]} 34. Qf3 {[%clk 0:00:17.4]} 34...
Ra1+ {[%clk 0:00:11.1]} 35. Kh2 {[%clk 0:00:18.5]} 35... Qc8 {[%clk 0:00:07.9]}
36. e6 {[%clk 0:00:15.7]} 36... Qb8+ {[%clk 0:00:04.9]} 37. Rf4 {[%clk
0:00:11.7]} 37... R8a7 {[%clk 0:00:03.3]} 38. Rf8 {[%clk 0:00:11]} 38... Qd6
{[%clk 0:00:02.5]} 39. Rf7+ {[%clk 0:00:12.3]} 39... Rxf7 {[%clk 0:00:03.2]} 40.
exf7 {[%clk 0:00:14.2]} 40... Qf8 {[%clk 0:00:04.2]} 41. Qe3 {[%clk 0:00:15.6]}
41... Ra7 {[%clk 0:00:03.4]} 42. Qe6 {[%clk 0:00:15.9]} 42... Re7 {[%clk
0:00:02.9]} 43. Qxc6 {[%clk 0:00:16.9]} 43... Rxf7 {[%clk 0:00:03.9]} 44. Rf6
{[%clk 0:00:12.1]} 44... Rxf6 {[%clk 0:00:04.2]} 45. gxf6 {[%clk 0:00:14]} 45...
Qf7 {[%clk 0:00:05.4]} 46. Qd6 {[%clk 0:00:14.3]} 46... g5 {[%clk 0:00:06.4]}
47. Qxb4 {[%clk 0:00:14.2]} 47... Qxf6 {[%clk 0:00:07.5]} 48. Qb7+ {[%clk
0:00:15.3]} 48... Kg6 {[%clk 0:00:08.3]} 49. Qxd5 {[%clk 0:00:16.9]} 49... Qf4+
{[%clk 0:00:09.5]} 50. Kg1 {[%clk 0:00:15.1]} 50... Qc1+ {[%clk 0:00:09.9]} 51.
Kf2 {[%clk 0:00:15.9]} 51... Qd2+ {[%clk 0:00:10.6]} 52. Kf3 {[%clk 0:00:15.6]}
52... g4+ {[%clk 0:00:10.9]} 53. Kg3 {[%clk 0:00:14.7]} 53... Qe1+ {[%clk
0:00:10.7]} 54. Kf4 {[%clk 0:00:15.3]} 54... Qc1+ {[%clk 0:00:04.2]} 55. Ke5
{[%clk 0:00:15.9]} 55... Qg5+ {[%clk 0:00:04.5]} 56. Kd6 {[%clk 0:00:17]} 56...
Qd8+ {[%clk 0:00:05]} 57. Kc5 {[%clk 0:00:17.5]} 57... Qa5+ {[%clk 0:00:05.8]}
58. Kc4 {[%clk 0:00:17.8]} 58... Qa6+ {[%clk 0:00:04.7]} 59. Kc3 {[%clk
0:00:19]} 59... Qa1+ {[%clk 0:00:04.5]} 60. Kb4 {[%clk 0:00:19.1]} 60... Qe1+
{[%clk 0:00:03.8]} 61. Kb5 {[%clk 0:00:20.5]} 61... h4 {[%clk 0:00:04.5]} 62. b4
{[%clk 0:00:20.2]} 62... h3 {[%clk 0:00:04.3]} 63. gxh3 {[%clk 0:00:21.4]} 63...
gxh3 {[%clk 0:00:06.2]} 64. Qd6+ {[%clk 0:00:22.7]} 64... Kg5 {[%clk 0:00:06.6]}
65. Qd8+ {[%clk 0:00:22.6]} 65... Kg4 {[%clk 0:00:06.8]} 66. Qg8+ {[%clk
0:00:22.9]} 66... Kf3 {[%clk 0:00:07]} 67. Qf7+ {[%clk 0:00:23.7]} 67... Kg2
{[%clk 0:00:07.9]} 68. Qg6+ {[%clk 0:00:24.2]} 68... Qg3 {[%clk 0:00:07.5]} 69.
Qc2+ {[%clk 0:00:21.3]} 69... Kg1 {[%clk 0:00:08.3]} 70. d5 {[%clk 0:00:22.4]}
70... h2 {[%clk 0:00:08.4]} 71. Qd1+ {[%clk 0:00:23.5]} 71... Kg2 {[%clk
0:00:08.8]} 72. Qe2+ {[%clk 0:00:24.8]} 72... Qf2 {[%clk 0:00:09.3]} 73. Qg4+
{[%clk 0:00:26.1]} 73... Kf1 {[%clk 0:00:10.1]} 74. Qd1+ {[%clk 0:00:27.2]}
74... Qe1 {[%clk 0:00:10.3]} 75. Qf3+ {[%clk 0:00:28.2]} 75... Kg1 {[%clk
0:00:11.2]} 76. Qg4+ {[%clk 0:00:29.3]} 76... Kf1 {[%clk 0:00:09.5]} 77. Qh3+
{[%clk 0:00:21.4]} 77... Kg1 {[%clk 0:00:10.6]} 78. Qg4+ {[%clk 0:00:22.8]}
78... Kf1 {[%clk 0:00:11.8]} 79. Qh3+ {[%clk 0:00:22.6]} 79... Kg1 {[%clk
0:00:12.8]} 80. Qg4+ {[%clk 0:00:23.6]} 80... Kf1 {[%clk 0:00:14]} 81. Qh3+
{[%clk 0:00:19.7]} 81... Kg1 {[%clk 0:00:14.1]} 82. Qg4+ {[%clk 0:00:20.8]}
82... Kf1 {[%clk 0:00:11.7]} 83. Qh3+ {[%clk 0:00:21.7]} 83... Kg1 {[%clk
0:00:12.6]} 84. Qg4+ {[%clk 0:00:22.9]} 1/2-1/2

[Event "*** Titled Tuesday Blitz"]
[Site "Chess.com"]
[Date "2019.05.07"]
[Round "10"]
[White "Alexander_Moskalenko"]
[Black "Sebastian"]
[Result "1-0"]
[WhiteElo "2882"]
[BlackElo "2899"]
[TimeControl "180+2"]
[EndTime "15:29:51 PDT"]
[Termination "Alexander_Moskalenko won by resignation"]

1. Nf3 {[%clk 0:03:01.9]} 1... c5 {[%clk 0:02:58.3]} 2. c4 {[%clk 0:03:03.8]}
2... Nc6 {[%clk 0:02:58.6]} 3. b3 {[%clk 0:03:02.5]} 3... e5 {[%clk 0:02:58.3]}
4. Bb2 {[%clk 0:02:49.6]} 4... d6 {[%clk 0:02:58.8]} 5. e3 {[%clk 0:02:45]} 5...
g6 {[%clk 0:03:00.2]} 6. d4 {[%clk 0:02:46.5]} 6... exd4 {[%clk 0:03:00.9]} 7.
exd4 {[%clk 0:02:47.8]} 7... Bg7 {[%clk 0:03:02.6]} 8. Be2 {[%clk 0:02:48]} 8...
Nge7 {[%clk 0:03:02.8]} 9. Qd2 {[%clk 0:02:45.8]} 9... O-O {[%clk 0:02:58.3]}
10. d5 {[%clk 0:02:34]} 10... Bxb2 {[%clk 0:02:55.4]} 11. Qxb2 {[%clk
0:02:35.9]} 11... Nb8 {[%clk 0:02:44.9]} 12. h3 {[%clk 0:02:36.7]} 12... Nd7
{[%clk 0:02:44]} 13. O-O {[%clk 0:02:35.1]} 13... Nf5 {[%clk 0:02:43.3]} 14. Bd3
{[%clk 0:02:28.3]} 14... Nh4 {[%clk 0:02:41.5]} 15. Nbd2 {[%clk 0:02:29.3]}
15... Nxf3+ {[%clk 0:02:33.7]} 16. Nxf3 {[%clk 0:02:31.2]} 16... Qf6 {[%clk
0:02:34.2]} 17. Qd2 {[%clk 0:01:40.8]} 17... Ne5 {[%clk 0:02:07.4]} 18. Nxe5
{[%clk 0:01:41.7]} 18... Qxe5 {[%clk 0:02:09.3]} 19. Rae1 {[%clk 0:01:43]} 19...
Qf6 {[%clk 0:02:10.7]} 20. Re3 {[%clk 0:01:44.6]} 20... Bd7 {[%clk 0:02:10.8]}
21. Rfe1 {[%clk 0:01:36.4]} 21... Rfe8 {[%clk 0:02:10.2]} 22. Qa5 {[%clk
0:01:23.2]} 22... Rxe3 {[%clk 0:02:08.6]} 23. Rxe3 {[%clk 0:01:25.1]} 23... Qd8
{[%clk 0:02:05.2]} 24. Qc3 {[%clk 0:01:22.2]} 24... Qg5 {[%clk 0:02:05.7]} 25.
Qe1 {[%clk 0:01:04.9]} 25... Kf8 {[%clk 0:01:50.5]} 26. Qc3 {[%clk 0:00:58.5]}
26... Kg8 {[%clk 0:01:51.3]} 27. Qe1 {[%clk 0:00:57.7]} 27... Qf6 {[%clk
0:01:52.2]} 28. Re7 {[%clk 0:00:51]} 28... Bc8 {[%clk 0:01:28.3]} 29. Re8+
{[%clk 0:00:52.2]} 29... Kg7 {[%clk 0:01:28.7]} 30. a4 {[%clk 0:00:52.4]} 30...
b6 {[%clk 0:01:28.4]} 31. a5 {[%clk 0:00:37.7]} 31... bxa5 {[%clk 0:01:12.3]}
32. Qxa5 {[%clk 0:00:37.3]} 32... Rb8 {[%clk 0:01:13.6]} 33. Bf1 {[%clk
0:00:35.9]} 33... h5 {[%clk 0:01:07.1]} 34. Qc7 {[%clk 0:00:29.1]} 34... Rxb3
{[%clk 0:01:07.1]} 35. Qxc8 {[%clk 0:00:30.5]} 35... Rb2 {[%clk 0:01:06.5]} 36.
Re2 {[%clk 0:00:30.1]} 36... Rxe2 {[%clk 0:01:03.8]} 37. Bxe2 {[%clk 0:00:30.5]}
37... a5 {[%clk 0:01:05.5]} 38. Qa6 {[%clk 0:00:29.4]} 38... Qa1+ {[%clk
0:01:04.5]} 39. Bf1 {[%clk 0:00:30.4]} 39... a4 {[%clk 0:01:05]} 40. Qxd6 {[%clk
0:00:31.9]} 40... a3 {[%clk 0:01:06.1]} 41. Qa6 {[%clk 0:00:25.2]} 41... a2
{[%clk 0:00:59.8]} 42. d6 {[%clk 0:00:26.4]} 42... Kf6 {[%clk 0:00:49.4]} 43.
d7+ {[%clk 0:00:26.6]} 43... Ke7 {[%clk 0:00:50.2]} 44. Qc8 {[%clk 0:00:22.8]}
44... Qxf1+ {[%clk 0:00:49.4]} 45. Kxf1 {[%clk 0:00:24.7]} 45... a1=Q+ {[%clk
0:00:49.3]} 46. Ke2 {[%clk 0:00:26.3]} 46... Qb2+ {[%clk 0:00:44.5]} 47. Ke1
{[%clk 0:00:13]} 47... Qc1+ {[%clk 0:00:45]} 48. Ke2 {[%clk 0:00:10.8]} 48...
Qxc4+ {[%clk 0:00:46.5]} 49. Ke1 {[%clk 0:00:11.6]} 49... Qe4+ {[%clk
0:00:41.4]} 50. Kf1 {[%clk 0:00:12.2]} 50... Qb1+ {[%clk 0:00:38.6]} 51. Ke2
{[%clk 0:00:13.4]} 51... Qc2+ {[%clk 0:00:39.5]} 52. Ke1 {[%clk 0:00:14.5]}
52... Qc3+ {[%clk 0:00:38.5]} 53. Ke2 {[%clk 0:00:15.7]} 53... Qc4+ {[%clk
0:00:36.6]} 54. Ke1 {[%clk 0:00:16.6]} 54... Qe6+ {[%clk 0:00:37.1]} 55. Kf1
{[%clk 0:00:17.9]} 55... Qxd7 {[%clk 0:00:37.8]} 56. Qxc5+ {[%clk 0:00:18.1]}
56... Ke6 {[%clk 0:00:38.1]} 57. Qe3+ {[%clk 0:00:17.8]} 57... Kf6 {[%clk
0:00:37.6]} 58. Qc3+ {[%clk 0:00:19.2]} 58... Kf5 {[%clk 0:00:36.4]} 59. Qf3+
{[%clk 0:00:17.2]} 59... Ke5 {[%clk 0:00:36.8]} 60. Kg1 {[%clk 0:00:16.8]} 60...
Qd5 {[%clk 0:00:19]} 61. Qc3+ {[%clk 0:00:15.7]} 61... Kf5 {[%clk 0:00:16.6]}
62. h4 {[%clk 0:00:11.9]} 62... f6 {[%clk 0:00:10.5]} 63. Qh3+ {[%clk
0:00:10.9]} 63... Ke5 {[%clk 0:00:10.9]} 64. Qg3+ {[%clk 0:00:12.5]} 64... Kf5
{[%clk 0:00:11.5]} 65. Qh3+ {[%clk 0:00:13.9]} 65... Ke5 {[%clk 0:00:12.5]} 66.
Qc8 {[%clk 0:00:15.3]} 66... Qd4 {[%clk 0:00:06.8]} 67. Qe8+ {[%clk 0:00:10.1]}
67... Kf5 {[%clk 0:00:07.3]} 68. Qb5+ {[%clk 0:00:11.5]} 68... Qe5 {[%clk
0:00:06.3]} 69. Qd7+ {[%clk 0:00:12.2]} 69... Qe6 {[%clk 0:00:06.6]} 70. Qd3+
{[%clk 0:00:13.5]} 70... Qe4 {[%clk 0:00:07.4]} 71. Qh3+ {[%clk 0:00:14]} 71...
Ke5 {[%clk 0:00:08]} 72. Qg3+ {[%clk 0:00:14.7]} 72... Ke6 {[%clk 0:00:08.4]}
73. Qb3+ {[%clk 0:00:12.7]} 73... Ke7 {[%clk 0:00:07.1]} 74. g3 {[%clk
0:00:07.7]} 74... Kf8 {[%clk 0:00:05.8]} 75. Qb8+ {[%clk 0:00:08.4]} 75... Kg7
{[%clk 0:00:06.3]} 76. Qc7+ {[%clk 0:00:10]} 76... Kh6 {[%clk 0:00:06.5]} 77.
Qd8 {[%clk 0:00:10.9]} 77... Kg7 {[%clk 0:00:07.4]} 78. Qd7+ {[%clk 0:00:11.4]}
78... Kf8 {[%clk 0:00:08]} 79. Qa7 {[%clk 0:00:12.7]} 79... Qe5 {[%clk
0:00:05.2]} 80. Qh7 {[%clk 0:00:12.1]} 80... Qe1+ {[%clk 0:00:03.7]} 81. Kg2
{[%clk 0:00:13.2]} 81... Qe4+ {[%clk 0:00:05.3]} 82. Kh2 {[%clk 0:00:14.6]}
82... Qf5 {[%clk 0:00:06.9]} 83. Qa7 {[%clk 0:00:15.8]} 83... Qe6 {[%clk
0:00:07.1]} 84. Kg2 {[%clk 0:00:15.6]} 84... Qd5+ {[%clk 0:00:07.7]} 85. Kf1
{[%clk 0:00:16.5]} 85... Qe4 {[%clk 0:00:08.6]} 86. Qc7 {[%clk 0:00:16]} 86...
Qh1+ {[%clk 0:00:07.1]} 87. Ke2 {[%clk 0:00:16.8]} 87... Qd5 {[%clk 0:00:08.7]}
88. Ke3 {[%clk 0:00:15.4]} 88... Qe6+ {[%clk 0:00:08.6]} 89. Kd4 {[%clk
0:00:16.5]} 89... Qf5 {[%clk 0:00:08.6]} 90. Qd8+ {[%clk 0:00:12.7]} 90... Kf7
{[%clk 0:00:08.7]} 91. Qc7+ {[%clk 0:00:14.6]} 91... Ke8 {[%clk 0:00:07.8]} 92.
Qb8+ {[%clk 0:00:15.3]} 92... Kd7 {[%clk 0:00:08.1]} 93. Qb7+ {[%clk 0:00:15.8]}
93... Ke8 {[%clk 0:00:06.9]} 94. Qe4+ {[%clk 0:00:17.1]} 94... Qxe4+ {[%clk
0:00:06.9]} 95. Kxe4 {[%clk 0:00:19]} 95... Kd7 {[%clk 0:00:07]} 96. Kd5 {[%clk
0:00:16.7]} 96... Ke7 {[%clk 0:00:07.8]} 97. f3 {[%clk 0:00:12.8]} 97... Kd7
{[%clk 0:00:07.4]} 98. g4 {[%clk 0:00:09.2]} 98... Ke7 {[%clk 0:00:05.3]} 99.
gxh5 {[%clk 0:00:07.5]} 99... gxh5 {[%clk 0:00:06.1]} 100. Ke4 {[%clk
0:00:09.4]} 100... Ke6 {[%clk 0:00:06.1]} 101. Kf4 {[%clk 0:00:10.7]} 101... f5
{[%clk 0:00:06.3]} 102. Kg5 {[%clk 0:00:11.7]} 102... Ke5 {[%clk 0:00:06.9]}
103. Kxh5 {[%clk 0:00:10.6]} 103... Kf6 {[%clk 0:00:08.2]} 104. f4 {[%clk
0:00:10.9]} 1-0